bitfinex-derivatives/quotes_BTCF0:USTF0_20241013
["timestamp","ask_amount","ask_price","bid_price","bid_amount"]
[1728853133595,0.0634,62786.0,62785.0,0.11]
[1728853133596,0.13128098,62786.0,62785.0,0.11]
[1728853133893,0.13128098,62786.0,62784.0,0.11]
[1728853134893,0.13128098,62786.0,62785.0,0.080648]
[1728853135289,0.06788098,62786.0,62785.0,0.079648]
[1728853135691,0.06788098,62786.0,62785.0,0.11]
[1728853135888,0.06788098,62786.0,62785.0,0.079648]
[1728853136094,0.06788098,62786.0,62785.0,0.189648]
[1728853136297,0.23622404,62786.0,62785.0,0.189648]
[1728853136594,0.29335528,62786.0,62785.0,0.189648]
[1728853136788,0.23622404,62786.0,62785.0,0.189648]
[1728853136994,0.23622404,62786.0,62785.0,0.190648]
[1728853137292,0.23622404,62786.0,62785.0,0.191648]
[1728853137496,0.23622404,62786.0,62785.0,0.002]
[1728853137691,0.23622404,62786.0,62777.0,0.0111]
[1728853137692,0.079648,62785.0,62779.0,0.0284606]
[1728853137893,0.11,62780.0,62778.0,0.079657]
[1728853138089,0.20051461,62779.0,62778.0,0.079657]
[1728853138294,0.23509559,62779.0,62778.0,0.079657]
[1728853138799,0.32973124,62779.0,62774.0,0.11]
[1728853138992,0.32973124,62779.0,62774.0,0.189662]
[1728853138993,0.23809895,62775.0,62774.0,0.189662]
[1728853139388,0.20051961,62775.0,62774.0,0.189662]
[1728853139696,0.20051961,62775.0,62774.0,0.11]
[1728853139996,0.20051961,62775.0,62773.0,0.39001236]
[1728853139997,0.079662,62774.0,62773.0,0.39001236]
[1728853140194,0.20052061,62774.0,62773.0,0.39001236]
[1728853142199,0.079672,62766.0,62765.0,0.0111]
[1728853142398,0.079676,62763.0,62762.0,0.079677]
[1728853142600,0.22230621,62763.0,62762.0,0.079677]
[1728853142800,0.20053461,62763.0,62762.0,0.079677]
[1728853143102,0.20053461,62763.0,62762.0,0.10770927]
[1728853143703,0.079676,62763.0,62762.0,0.10770927]
[1728853144013,0.079676,62763.0,62762.0,0.079677]
[1728853144302,0.079676,62763.0,62762.0,0.083677]
[1728853145589,0.079676,62763.0,62762.0,0.085677]
[1728853154113,0.17,62769.0,62762.0,0.006]
[1728853154313,0.20458098,62769.0,62765.0,0.079673]
[1728853154811,0.0037,62773.0,62762.0,0.006]
[1728853154812,0.0037,62773.0,62768.0,0.61047]
[1728853155105,0.00239022,62776.0,62775.0,0.079661]
[1728853155311,0.0369712,62776.0,62775.0,0.079661]
[1728853155495,0.00239022,62776.0,62775.0,0.079661]
[1728853155907,0.0037,62783.0,62772.0,0.249665]
[1728853156096,0.03828098,62783.0,62782.0,0.079652]
[1728853156298,0.03458098,62783.0,62782.0,0.079652]
[1728853157401,0.03458098,62783.0,62782.0,0.250652]
[1728853157910,0.03458098,62783.0,62782.0,0.251652]
[1728853157911,0.03558098,62783.0,62782.0,0.251652]
[1728853159006,0.11660112,62783.0,62782.0,0.23250484]
[1728853159199,0.15561081,62783.0,62782.0,0.23250484]
[1728853161398,0.15456155,62783.0,62782.0,0.23250484]
[1728853161599,0.11998057,62783.0,62782.0,0.23250484]
[1728853163798,0.27880479,62783.0,62782.0,0.23250484]
[1728853164012,0.11998057,62783.0,62782.0,0.23250484]
[1728853164401,0.36561787,62783.0,62782.0,0.27938597]
[1728853164602,0.1908981,62783.0,62782.0,0.27938597]
[1728853164807,0.11998057,62783.0,62782.0,0.27938597]
[1728853165408,0.11898057,62783.0,62782.0,0.27838597]
[1728853165714,0.11898057,62783.0,62782.0,0.20073397]
[1728853165914,0.17471772,62789.0,62785.0,0.079648]
[1728853166106,0.0311649,62788.0,62787.0,0.079646]
[1728853166306,0.0311649,62788.0,62787.0,0.249646]
[1728853166606,0.03458098,62788.0,62787.0,0.249646]
[1728853167712,0.03458098,62788.0,62787.0,0.250646]
[1728853168509,0.03458098,62788.0,62787.0,0.080646]
[1728853173817,0.12247937,62788.0,62787.0,0.06312346]
[1728853174020,0.1536665,62788.0,62787.0,0.11]
[1728853174911,0.1536665,62788.0,62787.0,0.189646]
[1728853175919,0.24037058,62788.0,62787.0,0.189646]
[1728853176114,0.21079635,62788.0,62787.0,0.189646]
[1728853176316,0.1536665,62788.0,62787.0,0.189646]
[1728853177507,0.3433105,62788.0,62787.0,0.079646]
[1728853177813,0.40044035,62788.0,62787.0,0.079646]
[1728853178015,0.07965,62784.0,62783.0,0.07965]
[1728853178213,0.19873552,62784.0,62783.0,0.07965]
[1728853178414,0.2333165,62784.0,62783.0,0.07965]
[1728853179217,0.2333165,62784.0,62783.0,0.08265]
[1728853179612,0.19873552,62784.0,62783.0,0.08265]
[1728853179817,0.23289859,62784.0,62783.0,0.08265]
[1728853180017,0.23289859,62784.0,62783.0,0.19765]
[1728853180326,0.11866761,62784.0,62783.0,0.19765]
[1728853181020,0.079641,62791.0,62790.0,0.079642]
[1728853181323,0.03458098,62791.0,62790.0,0.189642]
[1728853181919,0.03458098,62791.0,62790.0,0.249642]
[1728853182518,0.06534871,62791.0,62790.0,0.249642]
[1728853182914,0.03458098,62791.0,62790.0,0.249642]
[1728853183423,0.03458098,62791.0,62790.0,0.253642]
[1728853183629,0.03458098,62791.0,62790.0,0.255642]
[1728853184417,0.03076635,62791.0,62790.0,0.255642]
[1728853184620,0.00238952,62796.0,62795.0,0.079636]
[1728853184823,0.00238952,62796.0,62795.0,0.249636]
[1728853185224,0.03076419,62800.0,62795.0,0.610436]
[1728853185525,0.11420698,62803.0,62802.0,0.079627]
[1728853185719,0.1839699,62803.0,62802.0,0.079627]
[1728853186424,0.1449702,62803.0,62802.0,0.249627]
[1728853186724,0.18396889,62803.0,62802.0,0.250627]
[1728853186920,0.18396889,62803.0,62802.0,0.001]
[1728853187126,0.54476889,62803.0,62802.0,0.001]
[1728853187623,0.54476889,62803.0,62802.0,0.002]
[1728853189131,0.73663275,62803.0,62802.0,0.002]
[1728853190428,0.59365325,62803.0,62802.0,0.002]
[1728853192733,0.54477114,62803.0,62802.0,0.002]
[1728853194021,0.47500698,62803.0,62802.0,0.002]
[1728853194228,0.54477083,62803.0,62802.0,0.002]
[1728853195323,0.67195581,62803.0,62802.0,0.002]
[1728853196027,0.57114756,62803.0,62796.0,0.12412939]
[1728853196326,0.079631,62801.0,62800.0,0.079629]
[1728853196522,0.198278,62801.0,62800.0,0.079629]
[1728853196724,0.23285898,62801.0,62800.0,0.079629]
[1728853198729,0.18497506,62801.0,62800.0,0.080629]
[1728853199033,0.23385865,62801.0,62800.0,0.080629]
[1728853201839,0.34385865,62801.0,62800.0,0.080629]
[1728853202022,0.40098068,62801.0,62800.0,0.080629]
[1728853203833,0.40098068,62801.0,62800.0,0.001]
[1728853204037,0.2949765,62801.0,62800.0,0.001]
[1728853204539,0.25597591,62801.0,62800.0,0.001]
[1728853206233,0.14597591,62801.0,62800.0,0.001]
[1728853206435,0.25597591,62801.0,62800.0,0.001]
[1728853207233,0.61677591,62801.0,62800.0,0.001]
[1728853211034,0.70466328,62801.0,62800.0,0.001]
[1728853211227,0.62501249,62801.0,62800.0,0.001]
[1728853211423,0.70466084,62801.0,62800.0,0.001]
[1728853212731,0.34386084,62801.0,62800.0,0.001]
[1728853213238,0.29098169,62801.0,62796.0,0.11]
[1728853213537,0.079632,62798.0,62797.0,0.079631]
[1728853213735,0.19828086,62798.0,62797.0,0.079631]
[1728853215245,0.19928086,62798.0,62797.0,0.079631]
[1728853215836,0.25640088,62798.0,62797.0,0.079631]
[1728853216035,0.19928003,62798.0,62797.0,0.079631]
[1728853217445,0.11964803,62798.0,62797.0,0.079631]
[1728853218939,0.07076388,62798.0,62797.0,0.079631]
[1728853220547,0.07076205,62798.0,62797.0,0.079631]
[1728853221339,0.03176284,62798.0,62797.0,0.079631]
[1728853222944,0.07076209,62798.0,62797.0,0.079631]
[1728853225349,0.07076156,62798.0,62797.0,0.079631]
[1728853225938,0.11964383,62798.0,62797.0,0.0041761]
[1728853226145,0.11964383,62798.0,62796.0,0.1389597]
[1728853226345,0.11964383,62798.0,62796.0,0.2185937]
[1728853226346,0.11864383,62797.0,62796.0,0.2185937]
[1728853227354,0.12064383,62797.0,62796.0,0.2185937]
[1728853228551,0.06081855,62804.0,62803.0,0.079625]
[1728853228552,0.10970048,62804.0,62803.0,0.079625]
[1728853228749,0.04888193,62804.0,62803.0,0.079625]
[1728853229552,0.08346291,62804.0,62803.0,0.079625]
[1728853229846,0.11620498,62804.0,62803.0,0.080625]
[1728853230056,0.11620498,62804.0,62803.0,0.081625]
[1728853230843,0.03658098,62804.0,62803.0,0.191625]
[1728853231243,0.03658098,62804.0,62803.0,0.081625]
[1728853231651,0.03658098,62804.0,62803.0,0.10992961]
[1728853233642,0.08546138,62804.0,62803.0,0.10992961]
[1728853234043,0.07636294,62806.0,62803.0,0.28283317]
[1728853234256,0.07636294,62806.0,62805.0,0.09514766]
[1728853234450,0.07636294,62806.0,62805.0,0.21072465]
[1728853234647,0.07636294,62806.0,62805.0,0.21071788]
[1728853235154,0.07636294,62806.0,62805.0,0.29034088]
[1728853235656,0.07636294,62806.0,62805.0,0.29134088]
[1728853236349,0.0037,62828.0,62806.0,0.47764]
[1728853236556,0.079594,62829.0,62828.0,0.079593]
[1728853237263,0.440391,62831.0,62830.0,0.079591]
[1728853237549,0.079594,62828.0,62827.0,0.06330555]
[1728853237749,0.079594,62828.0,62827.0,0.06330363]
[1728853237750,0.189594,62828.0,62827.0,0.06330363]
[1728853238150,0.667074,62828.0,62825.0,0.06330363]
[1728853238451,0.189596,62826.0,62825.0,0.06330363]
[1728853238950,0.11,62826.0,62824.0,0.06330363]
[1728853239150,0.079598,62825.0,62824.0,0.14290163]
[1728853239354,0.079598,62825.0,62824.0,0.079598]
[1728853240154,0.079598,62825.0,62824.0,0.080598]
[1728853240954,0.440398,62825.0,62824.0,0.001]
[1728853241959,0.610398,62825.0,62824.0,0.001]
[1728853242262,0.610398,62825.0,62824.0,0.002]
[1728853242453,0.440398,62825.0,62824.0,0.002]
[1728853242653,0.610398,62825.0,62824.0,0.002]
[1728853242952,0.610398,62825.0,62824.0,0.081599]
[1728853244857,0.249598,62825.0,62824.0,0.081599]
[1728853251560,0.249598,62825.0,62824.0,0.002]
[1728853251768,0.28035149,62825.0,62824.0,0.002]
[1728853252959,0.28035162,62825.0,62824.0,0.002]
[1728853253165,0.11035162,62825.0,62824.0,0.002]
[1728853255157,0.11035087,62825.0,62824.0,0.002]
[1728853256263,0.079598,62825.0,62824.0,0.002]
[1728853260659,0.079598,62825.0,62824.0,0.081599]
[1728853264274,0.11035042,62825.0,62824.0,0.081599]
[1728853266158,0.11035035,62825.0,62824.0,0.081599]
[1728853266564,0.11035035,62825.0,62824.0,0.002]
[1728853266760,0.079606,62819.0,62817.0,0.0037]
[1728853266965,0.079606,62819.0,62813.0,0.083309]
[1728853266966,0.079612,62814.0,62813.0,0.083309]
[1728853267261,0.22036435,62814.0,62813.0,0.079609]
[1728853269878,0.03075235,62814.0,62813.0,0.189609]
[1728853270079,0.3608,62818.0,62817.0,0.079608]
[1728853270275,0.03075638,62818.0,62817.0,0.079608]
[1728853271172,0.189606,62819.0,62817.0,0.079608]
[1728853271482,0.189606,62819.0,62817.0,0.080608]
[1728853271874,0.079606,62819.0,62817.0,0.081608]
[1728853272180,0.4708,62818.0,62817.0,0.002]
[1728853272380,0.550406,62818.0,62817.0,0.002]
[1728853272873,0.550406,62818.0,62817.0,0.06534803]
[1728853275480,0.550406,62818.0,62817.0,0.002]
[1728853275481,0.189606,62818.0,62817.0,0.002]
[1728853275886,0.249606,62818.0,62817.0,0.002]
[1728853279385,0.44679597,62818.0,62817.0,0.002]
[1728853280282,0.44679594,62818.0,62817.0,0.002]
[1728853284786,0.37704855,62818.0,62817.0,0.002]
[1728853284995,0.44679587,62818.0,62817.0,0.002]
[1728853285694,0.31935332,62818.0,62817.0,0.002]
[1728853286192,0.249606,62818.0,62817.0,0.002]
[1728853287687,0.079608,62817.0,62814.0,0.04748713]
[1728853287893,0.079614,62812.0,62811.0,0.00238721]
[1728853288083,0.440414,62812.0,62811.0,0.00238721]
[1728853290282,0.441414,62812.0,62811.0,0.00238721]
[1728853290888,0.46983495,62812.0,62811.0,0.00238721]
[1728853294299,0.53959484,62812.0,62811.0,0.00238721]
[1728853294594,0.50059683,62812.0,62811.0,0.00238721]
[1728853295988,0.67059683,62812.0,62811.0,0.00238721]
[1728853296185,0.67059683,62812.0,62811.0,1e-08]
[1728853296489,0.67059683,62812.0,62807.0,0.0037]
[1728853296490,0.079619,62808.0,62807.0,0.0037]
[1728853296697,0.079625,62803.0,62802.0,0.0037]
[1728853296993,0.079628,62801.0,62799.0,0.079629]
[1728853297200,0.079628,62801.0,62800.0,0.440429]
[1728853297496,0.079621,62807.0,62805.0,0.079623]
[1728853298882,0.079621,62807.0,62805.0,0.082623]
[1728853299082,0.079621,62807.0,62805.0,0.003]
[1728853299392,0.079621,62807.0,62806.0,0.079622]
[1728853300793,0.079621,62807.0,62806.0,0.081622]
[1728853301793,0.189621,62807.0,62806.0,0.081622]
[1728853305198,0.189621,62807.0,62806.0,0.002]
[1728853305595,0.11,62807.0,62806.0,0.002]
[1728853305902,0.18962,62807.0,62806.0,0.002]
[1728853307203,0.18962,62807.0,62806.0,0.001]
[1728853307603,0.18962,62807.0,62804.0,0.079624]
[1728853307904,0.079622,62806.0,62803.0,0.06334803]
[1728853308094,0.079622,62806.0,62805.0,0.079623]
[1728853308692,0.189622,62806.0,62801.0,0.06334803]
[1728853309004,0.189622,62806.0,62799.0,0.06334803]
[1728853309005,0.079629,62800.0,62799.0,0.06334803]
[1728853309200,0.079629,62800.0,62798.0,0.079632]
[1728853309201,0.079631,62799.0,62798.0,0.06334803]
[1728853309598,0.079632,62798.0,62797.0,0.06334803]
[1728853309794,0.189632,62798.0,62797.0,0.06334803]
[1728853310502,0.189632,62798.0,62797.0,0.14298103]
[1728853311309,0.189632,62798.0,62797.0,0.14798103]
[1728853311507,0.189632,62798.0,62797.0,0.15098103]
[1728853312706,0.189632,62798.0,62797.0,0.087633]
[1728853313698,0.189632,62798.0,62797.0,0.15100676]
[1728853313899,0.189632,62798.0,62797.0,0.087633]
[1728853314710,0.189632,62798.0,62797.0,0.008]
[1728853318915,0.189632,62798.0,62797.0,0.087633]
[1728853319410,0.079632,62798.0,62797.0,0.087633]
[1728853323304,0.11,62799.0,62797.0,0.20333341]
[1728853323614,0.189631,62799.0,62798.0,0.21084525]
[1728853323913,0.189631,62799.0,62798.0,0.29047725]
[1728853325015,0.189631,62799.0,62798.0,0.29447725]
[1728853326217,0.189631,62799.0,62798.0,0.29647725]
[1728853326511,0.189631,62799.0,62798.0,0.29589732]
[1728853328126,0.4575,62805.0,62798.0,0.21626532]
[1728853328325,0.537124,62805.0,62804.0,0.15891332]
[1728853328511,0.647124,62805.0,62804.0,0.2739583]
[1728853329112,0.3608,62805.0,62804.0,0.19465551]
[1728853329314,0.0037,62812.0,62811.0,0.079615]
[1728853329614,0.11,62809.0,62806.0,0.09511658]
[1728853329915,0.11,62809.0,62804.0,0.446324]
[1728853329916,0.11,62809.0,62807.0,0.20986371]
[1728853330117,0.11,62809.0,62808.0,0.20986371]
[1728853330623,0.11,62809.0,62808.0,0.19436613]
[1728853331008,0.11,62809.0,62808.0,0.19433673]
[1728853331517,0.11,62809.0,62808.0,0.27355818]
[1728853331912,0.111,62809.0,62808.0,0.27355818]
[1728853333616,0.111,62809.0,62808.0,0.15884045]
[1728853334016,0.001,62809.0,62808.0,0.27350781]
[1728853334228,0.001,62809.0,62808.0,0.30428636]
[1728853336721,0.001,62809.0,62808.0,0.74424131]
[1728853338417,0.001,62809.0,62808.0,0.550419]
[1728853338725,0.001,62809.0,62808.0,1.028059]
[1728853339312,0.001,62809.0,62808.0,1.628059]
[1728853340619,0.001,62809.0,62808.0,1.267259]
[1728853340826,0.001,62809.0,62808.0,1.628059]
[1728853341016,0.001,62809.0,62808.0,1.267259]
[1728853341223,0.001,62809.0,62808.0,1.628059]
[1728853342524,0.0037,62815.0,62814.0,0.079612]
[1728853342715,0.1426,62823.0,62821.0,0.079603]
[1728853342716,0.0037,62822.0,62821.0,0.079603]
[1728853342918,0.03075344,62822.0,62821.0,0.079603]
[1728853343725,0.03175344,62822.0,62821.0,0.080603]
[1728853344332,0.03175344,62822.0,62821.0,0.081603]
[1728853344522,0.14175344,62822.0,62821.0,0.081603]
[1728853345329,0.14175346,62822.0,62821.0,0.081603]
[1728853346427,0.111,62822.0,62821.0,0.081603]
[1728853348423,0.190601,62822.0,62821.0,0.081603]
[1728853348824,0.190601,62822.0,62821.0,0.002]
[1728853353333,0.22135583,62822.0,62821.0,0.002]
[1728853353830,0.22135583,62822.0,62815.0,0.03286976]
[1728853353831,0.079609,62816.0,62815.0,0.03286976]
[1728853354033,0.079609,62816.0,62815.0,0.07961]
[1728853354034,0.22036383,62816.0,62815.0,0.07961]
[1728853354627,0.11036383,62816.0,62815.0,0.07961]
[1728853354829,0.22036383,62816.0,62815.0,0.07961]
[1728853355239,0.11036383,62816.0,62815.0,0.07961]
[1728853355435,0.22036383,62816.0,62815.0,0.08061]
[1728853356027,0.22136383,62816.0,62815.0,0.08161]
[1728853358534,0.26035411,62816.0,62815.0,0.08161]
[1728853359241,0.26035549,62816.0,62815.0,0.08161]
[1728853361437,0.190609,62816.0,62815.0,0.08161]
[1728853361639,0.190609,62816.0,62815.0,0.14493256]
[1728853361945,0.190609,62816.0,62815.0,0.06532256]
[1728853362138,0.551409,62816.0,62815.0,0.002]
[1728853365236,0.190609,62816.0,62815.0,0.002]
[1728853368453,0.22136764,62816.0,62815.0,0.002]
[1728853370149,0.26036167,62816.0,62815.0,0.002]
[1728853373154,0.22136764,62816.0,62815.0,0.002]
[1728853373354,0.22136691,62816.0,62815.0,0.002]
[1728853373548,0.26036061,62816.0,62815.0,0.002]
[1728853373950,0.22136723,62816.0,62815.0,0.002]
[1728853376351,0.190609,62816.0,62815.0,0.002]
[1728853378058,0.551409,62816.0,62815.0,0.002]
[1728853379763,0.079615,62811.0,62809.0,0.06335239]
[1728853379961,0.110317,62810.0,62809.0,0.06335239]
[1728853380174,0.110317,62810.0,62808.0,0.06335239]
[1728853380175,0.079618,62809.0,62808.0,0.06335239]
[1728853380375,0.189618,62809.0,62808.0,0.06335239]
[1728853380561,0.550418,62809.0,62808.0,0.06335239]
[1728853381270,0.5808,62809.0,62807.0,0.06335239]
[1728853381459,0.079619,62808.0,62807.0,0.06335239]
[1728853381662,0.4708,62809.0,62805.0,0.03037544]
[1728853381867,0.189622,62806.0,62805.0,0.10999844]
[1728853382773,0.079622,62806.0,62805.0,0.10999844]
[1728853383164,0.189622,62806.0,62805.0,0.11299844]
[1728853384266,0.189622,62806.0,62805.0,0.11399844]
[1728853384873,0.189622,62806.0,62805.0,0.11299844]
[1728853385075,0.189622,62806.0,62805.0,0.11399844]
[1728853385464,0.189622,62806.0,62805.0,0.08211844]
[1728853385669,0.22038191,62806.0,62805.0,0.08211844]
[1728853386073,0.22038191,62806.0,62805.0,0.11019886]
[1728853386268,0.22038191,62806.0,62805.0,0.10719886]
[1728853386468,0.22038218,62806.0,62805.0,0.11019886]
[1728853386873,0.22038218,62806.0,62805.0,0.10719886]
[1728853387077,0.22038218,62806.0,62805.0,0.10819886]
[1728853387577,0.22138218,62806.0,62805.0,0.10719886]
[1728853388464,0.22138183,62806.0,62805.0,0.10719886]
[1728853391577,0.190622,62806.0,62805.0,0.30089101]
[1728853392481,0.190622,62806.0,62805.0,0.18635381]
[1728853393373,0.190622,62806.0,62805.0,0.10719886]
[1728853402875,0.190622,62806.0,62805.0,0.18635381]
[1728853403580,0.190622,62806.0,62805.0,0.29999557]
[1728853403779,0.190622,62806.0,62805.0,0.18635381]
[1728853403977,0.190622,62806.0,62805.0,0.10719886]
[1728853404376,0.080622,62806.0,62805.0,0.10719886]
[1728853404578,0.190622,62806.0,62805.0,0.18635381]
[1728853404778,0.190622,62806.0,62805.0,0.10719886]
[1728853405481,0.111,62806.0,62805.0,0.10719886]
[1728853405687,0.111,62806.0,62805.0,0.29982246]
[1728853406579,0.111,62806.0,62805.0,0.10719886]
[1728853407579,0.111,62806.0,62805.0,0.10919886]
[1728853407780,0.1417594,62806.0,62805.0,0.10919886]
[1728853408280,0.1407594,62806.0,62805.0,0.11019886]
[1728853409475,0.0307594,62806.0,62805.0,0.11019886]
[1728853410081,0.1407,62810.0,62805.0,0.03208042]
[1728853410279,0.03075869,62809.0,62808.0,0.079619]
[1728853412484,0.03275869,62809.0,62808.0,0.079619]
[1728853413584,0.002,62809.0,62808.0,0.079619]
[1728853413780,0.002,62809.0,62808.0,0.27215799]
[1728853413988,0.002,62809.0,62808.0,0.15877395]
[1728853416788,0.002,62809.0,62808.0,0.27212921]
[1728853417187,0.002,62809.0,62808.0,0.15877395]
[1728853417890,0.112,62809.0,62808.0,0.15877395]
[1728853419688,0.112,62809.0,62808.0,0.079619]
[1728853421596,0.112,62809.0,62808.0,0.12718782]
[1728853425200,0.191618,62809.0,62808.0,0.12718782]
[1728853428097,0.191618,62809.0,62808.0,0.04756882]
[1728853428299,0.191618,62809.0,62807.0,0.04756882]
[1728853428300,0.079619,62808.0,62807.0,0.04756882]
[1728853428600,0.079619,62808.0,62802.0,0.0037]
[1728853428601,0.2835,62808.0,62802.0,0.0037]
[1728853428791,0.2835,62808.0,62787.0,0.3712502]
[1728853428792,0.079629,62800.0,62799.0,0.0037]
[1728853429095,0.079631,62799.0,62798.0,0.02939477]
[1728853429294,0.079631,62799.0,62794.0,0.0037]
[1728853429295,0.079634,62796.0,62794.0,0.079636]
[1728853429597,0.22039825,62796.0,62794.0,0.079636]
[1728853429795,0.3694013,62796.0,62795.0,0.00238877]
[1728853429986,0.3694013,62796.0,62788.0,0.3645]
[1728853429987,0.079643,62789.0,62788.0,0.3645]
[1728853430191,0.079643,62789.0,62788.0,0.3608]
[1728853430192,0.22040815,62789.0,62788.0,0.3608]
[1728853431690,0.22040815,62789.0,62788.0,0.3748]
[1728853432293,0.22040815,62789.0,62788.0,0.3888]
[1728853432493,0.189643,62789.0,62788.0,0.3888]
[1728853436501,0.189643,62789.0,62788.0,0.028]
[1728853436804,0.189643,62789.0,62788.0,0.07544936]
[1728853438511,0.189643,62789.0,62788.0,0.028]
[1728853442402,0.299643,62789.0,62788.0,0.028]
[1728853442908,0.299643,62789.0,62781.0,0.05114936]
[1728853442909,0.079652,62782.0,62781.0,0.0037]
[1728853443108,0.079657,62778.0,62777.0,0.36288]
[1728853443311,0.079657,62778.0,62777.0,0.3608]
[1728853443312,0.14979858,62778.0,62777.0,0.3608]
[1728853444504,0.14979858,62778.0,62775.0,0.00238874]
[1728853444505,0.07966,62776.0,62775.0,0.00238874]
[1728853445917,0.07966,62776.0,62768.0,0.3719]
[1728853445918,0.07966,62776.0,62769.0,0.079668]
[1728853446104,0.11,62771.0,62769.0,0.079668]
[1728853446300,0.11,62771.0,62767.0,0.0037]
[1728853446301,0.11,62771.0,62763.0,0.0037]
[1728853446500,0.11,62764.0,62763.0,0.079676]
[1728853447618,0.11,62764.0,62763.0,0.090676]
[1728853448002,0.189675,62764.0,62763.0,0.090676]
[1728853448414,0.190675,62764.0,62763.0,0.104676]
[1728853448903,0.191675,62764.0,62763.0,0.093676]
[1728853449709,0.002,62764.0,62763.0,0.203676]
[1728853450606,0.193366,62771.0,62763.0,1.456676]
[1728853450607,0.0037,62771.0,62763.0,1.456676]
[1728853450807,0.00238998,62784.0,62770.0,0.189667]
[1728853451123,0.00238998,62784.0,62783.0,0.079651]
[1728853451124,0.08203998,62784.0,62783.0,0.079651]
[1728853451413,0.00238998,62784.0,62783.0,0.079651]
[1728853452006,0.00338998,62784.0,62783.0,0.079651]
[1728853452515,0.00238998,62784.0,62783.0,0.194651]
[1728853452811,0.00238998,62784.0,62783.0,0.197651]
[1728853454215,0.00338998,62784.0,62783.0,0.200651]
[1728853454613,0.00338998,62784.0,62783.0,0.189651]
[1728853454818,0.00338998,62784.0,62783.0,0.200651]
[1728853455207,0.00338998,62784.0,62783.0,0.561451]
[1728853456016,0.11,62792.0,62791.0,0.079641]
[1728853457619,0.113,62792.0,62791.0,0.079641]
[1728853458221,0.118,62792.0,62791.0,0.079641]
[1728853458413,0.197639,62792.0,62791.0,0.079641]
[1728853458619,0.3948061,62792.0,62791.0,0.079641]
[1728853458927,0.26741229,62792.0,62791.0,0.079641]
[1728853459424,0.26441229,62792.0,62791.0,0.079641]
[1728853460016,0.26141229,62792.0,62791.0,0.079641]
[1728853460519,0.26141276,62792.0,62791.0,0.079641]
[1728853461122,0.26141276,62792.0,62791.0,0.1083086]
[1728853464027,0.18177376,62792.0,62791.0,0.1083086]
[1728853464819,0.18277376,62792.0,62791.0,0.1083086]
[1728853465025,0.18077376,62792.0,62791.0,0.1083086]
[1728853465223,0.26341276,62792.0,62791.0,0.1083086]
[1728853465539,0.26341306,62792.0,62791.0,0.1083086]
[1728853465931,0.26041306,62792.0,62791.0,0.1083086]
[1728853466119,0.18077406,62792.0,62791.0,0.1083086]
[1728853466316,0.03076813,62792.0,62791.0,0.2183086]
[1728853466517,0.3608,62797.0,62792.0,0.079639]
[1728853466826,0.3608,62797.0,62796.0,0.189634]
[1728853467726,0.3618,62797.0,62796.0,0.189634]
[1728853468127,0.3608,62797.0,62796.0,0.189634]
[1728853468322,0.3688,62797.0,62796.0,0.189634]
[1728853468921,0.3638,62797.0,62796.0,0.189634]
[1728853469123,0.3638,62797.0,62796.0,0.192634]
[1728853469324,0.3638,62797.0,62796.0,0.082634]
[1728853469825,0.003,62797.0,62796.0,0.082634]
[1728853470233,0.11,62799.0,62798.0,0.079632]
[1728853471326,0.11,62799.0,62798.0,0.083632]
[1728853472429,0.299631,62799.0,62798.0,0.004]
[1728853473135,0.331331,62799.0,62798.0,0.004]
[1728853473520,0.221331,62799.0,62798.0,0.004]
[1728853473732,0.29110022,62799.0,62798.0,0.003]
[1728853473919,0.29110022,62799.0,62796.0,0.079634]
[1728853473920,0.079633,62797.0,62796.0,0.079634]
[1728853474126,0.25940222,62797.0,62796.0,0.079634]
[1728853474734,0.25940343,62797.0,62796.0,0.079634]
[1728853475233,0.25940343,62797.0,62796.0,0.080634]
[1728853476531,0.22239953,62797.0,62796.0,0.080634]
[1728853477228,0.25940336,62797.0,62796.0,0.080634]
[1728853477433,0.26140336,62797.0,62796.0,0.080634]
[1728853479135,0.38845604,62797.0,62796.0,0.080634]
[1728853479527,0.38845598,62797.0,62796.0,0.080634]
[1728853480225,0.2614033,62797.0,62796.0,0.080634]
[1728853480822,0.0717703,62797.0,62796.0,0.080634]
[1728853481025,0.0717703,62797.0,62796.0,0.190634]
[1728853481222,0.0717703,62797.0,62796.0,0.079634]
[1728853481434,0.0717703,62797.0,62796.0,0.080634]
[1728853481640,0.002,62797.0,62796.0,0.080634]
[1728853481825,0.002,62797.0,62796.0,0.12802071]
[1728853482429,0.11,62798.0,62797.0,0.079633]
[1728853483633,0.11,62798.0,62797.0,0.084633]
[1728853484034,0.11,62798.0,62797.0,0.086633]
[1728853485832,0.11,62798.0,62797.0,0.085633]
[1728853486041,0.11,62798.0,62797.0,0.080633]
[1728853486239,0.11,62798.0,62797.0,0.084633]
[1728853486637,0.11,62798.0,62797.0,0.083633]
[1728853486838,0.11,62798.0,62797.0,0.084633]
[1728853488842,0.11,62798.0,62797.0,0.083633]
[1728853489146,0.11,62798.0,62797.0,0.084633]
[1728853489736,0.11,62798.0,62797.0,0.083633]
[1728853489939,0.11,62798.0,62797.0,0.084633]
[1728853492439,0.11,62798.0,62797.0,0.11373999]
[1728853496839,0.17976496,62798.0,62797.0,0.11373999]
[1728853497848,0.17976496,62798.0,62797.0,0.11273999]
[1728853498248,0.30696303,62798.0,62797.0,0.11273999]
[1728853498646,0.30696303,62798.0,62797.0,0.10873999]
[1728853498954,0.30696303,62798.0,62797.0,0.11173999]
[1728853500347,0.17976496,62798.0,62797.0,0.11173999]
[1728853501451,0.06976496,62798.0,62797.0,0.22173999]
[1728853501647,0.03076412,62798.0,62797.0,0.22173999]
[1728853501847,0.03076412,62798.0,62797.0,0.21873999]
[1728853502049,0.03076412,62798.0,62797.0,0.22173999]
[1728853502951,0.03076412,62798.0,62797.0,0.22273999]
[1728853503850,0.189626,62803.0,62802.0,0.079627]
[1728853505158,0.193626,62803.0,62802.0,0.079627]